Cogmind - Beta 14 @@@ ROGUE MODE // 2024.10.19 @ 00:03:50 Player: Calasmeer Result: Destroyed by P-60 Hacker with Shock Rifle Performance ------------- Evolutions (0) 0 Regions Visited (3) 600 Robots Destroyed (28) 140 Value Destroyed (701) 701 Prototype IDs (11) 220 Alien Tech Used (0) 0 Bonus (8) 8 TOTAL SCORE: 1669 Bonus ------- High Alert Combat Kills 8 Cogmind --------- Core Integrity 0/250 Matter 257/300 Energy 250/250 System Corruption 3% Temperature Cool (0) Movement Rolling (110) Location -7/Recycling Parts ------- > --- POWER (1) -------- Ion Engine > --- PROPULSION (2) --- Subdweller Monowheel > --- UTILITY (2) ------ Medium Storage Unit Makeshift Light Armor Plating > --- WEAPON (2) ------- Mini Grenade Launcher > --- INVENTORY (10) --- Subdweller Power Source Subdweller Power Source Aluminum Leg Subdweller Monowheel Subdweller Monowheel Small Storage Unit Subdweller Optics Improved Terrain Scanner Light Armor Plating Power Bank Peak State ------------ > --- POWER ------------ Ion Engine > --- PROPULSION ------- Wheel Subdweller Monowheel > --- UTILITY ---------- Medium Storage Unit Makeshift Light Armor Plating > --- WEAPON ----------- Makeshift Laser Mini Grenade Launcher > --- INVENTORY -------- Subdweller Power Source Aluminum Leg Subdweller Monowheel Small Storage Unit Subdweller Optics Improved Terrain Scanner Light Armor Plating Power Bank Battle Rifle Grenade Launcher [Rating: 17] Favorites ----------- Power Ion Engine Engine Ion Engine Propulsion Wheel Treads Light Treads Wheel Wheel Utility Medium Storage Unit Device Seismic Detector Storage Medium Storage Unit Processor Signal Interpreter Protection Makeshift Light Armor Plating Weapon Grenade Launcher Energy Gun Makeshift Laser Ballistic Gun Battle Rifle Ballistic Cannon Light Cannon Launcher Grenade Launcher Build | -11 -10 -10 -7 ------- Run | Yrd Mat Sub Rec Slots Evolved . | . . . . Power . | . . . . Propulsion . | . . . . Utility . | . . . . Weapon . | . . . . Parts Attached 25 | 8 4 13 . Power 2 | 1 . 1 . Engine 2 | 1 . 1 . Core . | . . . . Reactor . | . . . . Propulsion 7 | 2 . 5 . Treads 1 | . . 1 . Leg . | . . . . Wheel 6 | 2 . 4 . Hover . | . . . . Flight . | . . . . Utility 6 | 3 1 2 . Device 2 | 2 . . . Storage 2 | 1 . 1 . Processor 1 | . 1 . . Hackware . | . . . . Protection 1 | . . 1 . Artifact . | . . . . Weapon 10 | 2 3 5 . Energy Gun 4 | 2 1 1 . Energy Cannon . | . . . . Ballistic Gun 2 | . . 2 . Ballistic Cannon 1 | . 1 . . Launcher 3 | . 1 2 . Special Weapon . | . . . . Impact Weapon . | . . . . Slashing Weapon . | . . . . Piercing Weapon . | . . . . Special Melee Weapon . | . . . . Unidentified Prototypes . | . . . . Parts Lost 8 | . 1 7 . Power 1 | . . 1 . Propulsion 3 | . . 3 . Utility . | . . . . Weapon 4 | . 1 3 . Highest Loss Streak 2 | . 1 2 . To Critical Strikes . | . . . . Average Slot Usage (%) 98 | . 100 97 71 Engine 13 | . 14 13 14 Treads 4 | . . 5 . Wheel 22 | . 28 20 14 Storage 14 | . 14 14 14 Processor 4 | . 10 1 . Protection 8 | . . 12 14 Energy Gun 12 | . 14 11 . Ballistic Gun 1 | . . 2 . Launcher 13 | . 11 14 14 Peak Build Rating 17 | 9 8 17 12 Average Rating 12 | 5 7 14 12 On Entrance 6 | . 7 8 12 Naked Turns . | . . . . Heaviest Build 24 | 12 14 24 20 Greatest Support 30 | 20 20 30 20 Greatest Overweight (x) 7 | . . 7 . Average Overweight (x) . | . . . . Largest Inventory Capacity 10 | 8 8 10 10 Average Capacity 9 | 7 8 9 10 Most Carried 10 | 5 8 10 10 Average Carried 8 | 2 7 9 10 Final Capacity 10 | 8 8 10 10 Final Carried 10 | 5 8 10 10 Class Distribution -------------------- 100% | Mutant Dominant Class ---------------- Mutant | -10/Materials Mutant | -10/Subcaves Mutant | -7/Recycling Resources | -11 -10 -10 -7 ----------- Run | Yrd Mat Sub Rec Matter Collected 936 | 270 174 492 . Remotely . | . . . . Salvage Created 810 | 109 411 223 67 Parts 50 | 6 29 14 1 Haulers Intercepted . | . . . . Recyclers Shooed 2 | . 2 . . Parts Field Recycled . | . . . . Retrieved Matter . | . . . . Parts Self-Destructed 9 | . . 9 . Prevented . | . . . . Kills | -11 -10 -10 -7 ------- Run | Yrd Mat Sub Rec Combat Hostiles Destroyed 19 | . 10 8 1 Guns 4 | . 2 2 . Cannons 1 | . 1 . . AOE 14 | . 7 6 1 Classes Destroyed 9 | 2 5 2 . Worker 1 | . 1 . . Builder 2 | . 2 . . Tunneler 1 | 1 . . . Recycler 3 | 1 2 . . Watcher 2 | . 2 . . Swarmer 5 | . 3 1 1 Grunt 8 | . 7 1 . Sentry 1 | . . 1 . Subdweller 5 | . . 5 . Best Kill Streak 11 | 1 11 2 1 Combat Bots Only 6 | . 6 2 1 Max Kills in Single Turn 2 | 1 2 2 1 Gunslinging . | . . . . Exploded 2 | . 1 2 1 Melee . | . . . . Uniques/NPCs Destroyed . | . . . . Combat | -11 -10 -10 -7 -------- Run | Yrd Mat Sub Rec Hostile Shots Fired 145 | . 33 105 7 Missed 49 | . 11 37 1 Damage Taken 1059 | . 244 723 92 Core 253 | . 51 170 32 Absorbed by Shields . | . . . . Core Remaining (%) 100 | 100 . . . Volleys Fired 75 | 4 26 42 3 Largest 2 | 2 2 2 1 Hottest 180 | 90 85 180 30 Shots Fired 122 | 6 49 64 3 Gun 66 | 6 25 35 . Cannon 6 | . 6 . . Launcher 50 | . 18 29 3 Special . | . . . . Kinetic 21 | . 6 15 . Thermal 51 | 6 25 20 . Explosive 50 | . 18 29 3 Electromagnetic . | . . . . Robot Hit Streak 8 | 2 8 5 7 Robot Miss Streak 2 | 1 2 2 . Penetration Max . | . . . . Secondary Targets . | . . . . Shots Hit Robots 47 | 3 22 20 2 Core Hits 50 | 3 28 16 3 Critical Kills . | . . . . Critical Parts Destroyed . | . . . . Critical Strikes 2 | . 1 1 . Burn 1 | . . 1 . Blast 1 | . 1 . . Melee Attacks . | . . . . Impact . | . . . . Slashing . | . . . . Piercing . | . . . . Sneak Attacks . | . . . . Combat Hostiles . | . . . . Follow-up Attacks . | . . . . Damage Inflicted 1949 | 35 859 944 111 Guns 419 | 35 164 220 . Cannons 94 | . 94 . . Explosions 1436 | . 601 724 111 Melee . | . . . . Ramming . | . . . . Kinetic 208 | . 94 114 . Thermal 305 | 35 164 106 . Explosive 1436 | . 601 724 111 Electromagnetic . | . . . . Impact . | . . . . Slashing . | . . . . Piercing . | . . . . Highest Corruption 2 | . . . 2 Average Corruption 1 | . . . 1 Corruption Purged . | . . . . Corruption Blocked . | . . . . Overload Shots 2 | . . 2 . Effects 1 | . . 1 . Short Circuit 1 | . . 1 . Overflow Damage . | . . . . Projectiles . | . . . . Explosions . | . . . . Melee . | . . . . Knockbacks 1 | . 1 . . Impact . | . . . . Kinetic 1 | . 1 . . Secondary . | . . . . Self-Inflicted Damage 80 | . 29 51 . Shots 6 | . 2 4 . Rammed . | . . . . Targets Rammed . | . . . . Kicked . | . . . . Crushed . | . . . . Highest Temperature 269 | 60 90 269 . Average Temperature 44 | 33 33 86 . Received Heat Transfer 618 | . 66 552 . Siege Activations . | . . . . Robots Corrupted . | . . . . Combat Hostiles . | . . . . Parts Fried . | . . . . Impact Corruptions . | . . . . Robots Melted . | . . . . Combat Hostiles . | . . . . Parts Melted . | . . . . Heat Transferred 853 | 87 481 285 . Parts Sabotaged . | . . . . Parts Stolen . | . . . . Parts Stripped . | . . . . Power Chain Reactions . | . . . . Alert | -11 -10 -10 -7 ------- Run | Yrd Mat Sub Rec Peak Influence 417 | 10 417 . 63 Initial 16 | . 6 . 16 Average 151 | 5 165 . 26 Maximum Alert Level 2 | . 2 . . Low Security (%) 50 | 100 45 . 100 Level 1 47 | . 52 . . Level 2 1 | . 1 . . Level 3 . | . . . . Level 4 . | . . . . Level 5 . | . . . . High Security . | . . . . Max Security . | . . . . Squads Dispatched . | . . . . Investigation . | . . . . Extermination . | . . . . Reinforcement . | . . . . Assault . | . . . . Garrison . | . . . . Intercept . | . . . . Searches Triggered . | . . . . Construction Impeded . | . . . . Haulers Reinforced . | . . . . Active Scanning Responses . | . . . . Cargo Convoy Interrupts . | . . . . Stealth | -11 -10 -10 -7 --------- Run | Yrd Mat Sub Rec Distress Signals 1 | . 1 . . Communications Jammed . | . . . . Distress Signals . | . . . . Times Spotted 38 | . 11 25 2 Peak Tracking Total 3 | . 3 3 2 Tactical Retreats 7 | . . 7 . Traps | -11 -10 -10 -7 ------- Run | Yrd Mat Sub Rec Traps Triggered . | . . . . Indirectly . | . . . . Trap Hack Attempts . | . . . . Triggered . | . . . . Disarmed . | . . . . Reprogrammed . | . . . . Reused . | . . . . Traps Extracted . | . . . . Installed . | . . . . Triggered . | . . . . Machines | -11 -10 -10 -7 ---------- Run | Yrd Mat Sub Rec Machines Disabled 5 | . 1 4 . Max in Single Turn 2 | . 1 2 . Machines Repaired . | . . . . Machines Dismantled . | . . . . Machines Sabotaged . | . . . . Overloaded Fab Kills . | . . . . Hacking | -11 -10 -10 -7 --------- Run | Yrd Mat Sub Rec Machines Accessed 9 | . 5 2 2 Terminals 6 | . 5 . 1 Fabricators . | . . . . Repair Stations . | . . . . Recycling Units 1 | . . . 1 Scanalyzers . | . . . . Garrison Access . | . . . . Total Hacks 30 | . 13 13 4 Successful 22 | . 6 13 3 Failed 8 | . 7 . 1 Catastrophic . | . . . . Database Lockouts . | . . . . Manual 12 | . 10 . 2 Terminals 14 | . 13 . 1 Fabricators . | . . . . Repair Stations . | . . . . Recycling Units 3 | . . . 3 Scanalyzers . | . . . . Garrison Access . | . . . . Terminal Hacks 17 | . 4 13 . Record 15 | . 3 12 . Locate Traps 1 | . 1 . . Derelict Proto ID Bank 1 | . . 1 . Fabricator Hacks . | . . . . Repair Station Hacks . | . . . . Recycling Unit Hacks 2 | . . . 2 Process 1 | . . . 1 Report Inventory 1 | . . . 1 Scanalyzer . | . . . . Garrison Access Hacks . | . . . . Unauthorized Hacks 3 | . 2 . 1 Terminals 2 | . 2 . . Botnet 2 | . 2 . . Fabricators . | . . . . Repair Stations . | . . . . Recycling Units 1 | . . . 1 Reject 1 | . . . 1 Scanalyzers . | . . . . Garrison Access . | . . . . Data Cores Recovered . | . . . . Used . | . . . . Hacking Detections 5 | . 4 . 1 Full Trace Events . | . . . . Feedback Events . | . . . . Feedback Blocked . | . . . . Robot Schematics Acquired . | . . . . Robots Built . | . . . . Authchips . | . . . . Time . | . . . . Total Robot Build Rating . | . . . . Part Schematics Acquired . | . . . . Parts Built . | . . . . Authchips . | . . . . Time . | . . . . Total Part Build Rating . | . . . . Parts Repaired . | . . . . Time . | . . . . Parts Recycled . | . . . . Recycled Matter . | . . . . Retrieved Matter . | . . . . Retrieved Components . | . . . . Parts Scanalyzed . | . . . . Part Schematics Acquired . | . . . . Parts Damaged . | . . . . Bothacking | -11 -10 -10 -7 ------------ Run | Yrd Mat Sub Rec Used RIF Installer . | . . . . Robots Hacked . | . . . . Non-combat . | . . . . Combat . | . . . . Robot Hacks Applied . | . . . . Relay Couplers Released . | . . . . Fabnet Peak Effective % . | . . . . Robots Rewired . | . . . . Allies Hacked . | . . . . Hacks Repelled . | . . . . Allies | -11 -10 -10 -7 -------- Run | Yrd Mat Sub Rec Total Allies . | . . . . Largest Group . | . . . . Highest-Rated Group . | . . . . Highest-Rated Ally . | . . . . Total Orders . | . . . . Ally Attacks . | . . . . Total Damage . | . . . . Kills . | . . . . Allies Corrupted . | . . . . Allies Melted . | . . . . Intel | -11 -10 -10 -7 ------- Run | Yrd Mat Sub Rec Robot Analysis Total . | . . . . Derelict Logs Recovered 1 | . . 1 . Drone Launches . | . . . . Drone Recoveries . | . . . . Exploration | -11 -10 -10 -7 ------------- Run | Yrd Mat Sub Rec Turns Passed 4039 | 68 1104 2817 50 Spaces Moved 2597 | 49 501 2008 39 Core 3 | 1 . 2 . Treads 471 | . . 471 . Legs . | . . . . Wheels 2123 | 48 501 1535 39 Hover . | . . . . Flight . | . . . . Fastest Speed 50 | 50 80 80 110 Average Speed 121 | 79 80 132 110 Slowest Speed 400 | 80 80 400 110 Overloaded Moves . | . . . . Propulsion Burnouts . | . . . . Robots Hopped . | . . . . Cave-ins Triggered . | . . . . Exploration Rate (%) 47 | 5 82 92 12 Regions Visited 3 Branch Regions 2 Pre-discovered Areas 1 | . . 1 . Known Exits Taken 1 | . 1 . . Unknown Exits Taken 2 | 1 . 1 . Scrap Searched 10 | . . 10 . Spaces Dug 53 | . . 53 . Terrain Destroyed 326 | . 95 201 30 Melee . | . . . . Projectile 1 | . . 1 . AOE 325 | . 95 200 30 Terrain Rammed . | . . . . Walls Destroyed . | . . . . Machines Disabled . | . . . . Actions | -11 -10 -10 -7 --------- Run | Yrd Mat Sub Rec Total 3363 | 70 1155 2094 44 Wait 632 | . 615 15 2 Move 2594 | 48 500 2007 39 Hop . | . . . . Pick Up 25 | 9 7 9 . Fast Attach 6 | 3 . 3 . Attach 13 | 5 2 6 . Detach 2 | 1 . 1 . Swap 6 | . 2 4 . Drop 8 | . 3 5 . Fire 75 | 4 26 42 3 Melee . | . . . . Ram . | . . . . Kick . | . . . . Crush . | . . . . Escape Stasis . | . . . . Rewire 2 | . . 2 . Trap . | . . . . Miscellaneous . | . . . . Route ------- -11/Scrapyard -10/Materials (discovered 6 exits: *Mat x3 / *Min x2 / *Sub) -10/Subcaves (discovered 3 exits: [*Mat x2] / *Rec) -7/Recycling History --------- Turn | Location | Event 12 | -11/Scrapyard | Discovered new exit (range 15) 69 | -11/Scrapyard | Entered Materials 134 | -10/Materials | Discovered new exit (range 3) 236 | -10/Materials | Discovered new exit (range 13) 288 | -10/Materials | Discovered new exit (range 16) 305 | -10/Materials | Identified exit to Mines 316 | -10/Materials | Discovered new exit (range 4) 318 | -10/Materials | Identified exit to Materials 323 | -10/Materials | Build established: Mutant 482 | -10/Materials | Discovered exit to Materials (range 3) 1128 | -10/Materials | Discovered new exit (range 4) 1145 | -10/Materials | Identified exit to Subcaves 1173 | -10/Materials | Entered Subcaves 1180 | -10/Subcaves | Learned location of Zion (-7) 1182 | -10/Subcaves | A swath of the cavern ceiling suddenly collapsed 1199 | -10/Subcaves | Ambushed by Subdwellers from Twisted Machinery 1343 | -10/Subcaves | Discovered new exit (range 12) 1514 | -10/Subcaves | Visited 4L-MR0's lab 1552 | -10/Subcaves | Found Power Bank 1707 | -10/Subcaves | Visited Clippyterm 1709 | -10/Subcaves | Learned Factory stockpile data 1709 | -10/Subcaves | Learned Factory garrison access intel 1776 | -10/Subcaves | Shifting Twisted Machinery released Sub. Power Source 2895 | -10/Subcaves | Discovered new exit (range 14) 2951 | -10/Subcaves | Discovered new exit (range 12) 3391 | -10/Subcaves | Shifting Twisted Machinery released Barrage Gun 3473 | -10/Subcaves | A swath of the cavern ceiling suddenly collapsed 3487 | -10/Subcaves | Core integrity fell below 50% 3954 | -10/Subcaves | Core integrity fell below 20% 3990 | -10/Subcaves | Entered Recycling 4040 | -7/Recycling | Destroyed by P-60 Hacker with Shock Rifle Last Messages --------------- 03970_ Acquired 47 matter. 03983_ Battle Rifle destroyed. LOCATION=UNKNOWN GOAL=ESCAPE 03992_ Connecting with Recycling Unit... 03992_ Current location identified: Recycling >>Recycling(Process) Analyzing inventory... >>Recycling(Report) Matter reserves: 0 Inventory: Empty >>Trojan(Reject) Trojan loaded successfully. Testing... Ejection routine running. 04000_ Connecting with Terminal... 04009_ R-06 Scavenger destroyed. 04033_ P-60 Hacker springs to life. 04034_ S-27 Virus springs to life. 04039_ S-27 Virus destroyed. Map ----- +----------------------------------------------------+ | ?????????????????????????????????????????? | | ?????????????????????????????????????????? | | ?????????????????????????????????????????? | | ?????????????????????????????????????????? | | ?????????????????????????????????????????? | | ?????????????????????????????????????????? | | ????????????????? ?????????????????????? | | ????????????????? #????????????????????? | | ????????????????? #????????????????????? | | ????????????????# #????????????????????? | | ????????????????# #????????????????????? | | ????????????????" + ???????????????????? | | ????????????????Y # ! ?????????????????? | | ????????????????" # ??????????????????? | | ????????????????# ??????????????????? | | ??????########### ???????????????????? | | ??????# ???????????????????? | | ??????# / ! #???????????????????? | | ??????# = ##??????????????????? | | ??????#] % !!#??????????????????? | | ??????# ! !# !#??????????????????? | | ??????# !] + !#??????????????????? | | ??????# ]#p #############+#??????? | | ??????# # ## #??????? | | ??????########### ## #??????? | | ???????#####????#@ ## #??????? | | ???????#"""#???## ## #??????? | | ?????###"Y"##### # +??????? | | ?????# "" # #??????? | | ?????# T + #??????? | | ?????# # #??????? | | ?????########### # #??????? | | ???????????????###### #??????? | | ????????????????????? +??????? | | ????????????????????? #??????? | | ?????????????????????# % #######??????? | | ?????????????????????? ##????????????? | | ?????????????????????? # #?????????????? | | ?????????????????????? ###?????????????? | | ??????????????????????####???????????????? | | ?????????????????????????????????????????? | | ?????????????????????????????????????????? | | | | | | | | | | | | | | | | | +----------------------------------------------------+ Best States ------------- Heat Dissipation 25 Energy Generation 10 Energy Capacity 250 Matter Stores 300 Matter Capacity 300 Sight Range 16 Terrain Scan Range 16 Terrain Scan Density 10 Armor Coverage 100 Evasion (%) 44 Recoil Reduction 1 Item Schematics ----------------- None Robot Schematics ------------------ None Fabricated ------------ Nothing Alien Tech Used ----------------- None Achievements -------------- None Challenges ------------ None Game ------ Seed CoolantDrainedMantle Manual? 0 Play Time 00:30:59 Cumulative 15.2 hours Start 2024.10.18 @ 23:32:41 End 2024.10.19 @ 00:03:50 Sessions 1 Manual Loads 0 Difficulty Rogue Special Mode None Game No. 20 Rogue 19 Adventurer 0 Explorer 1 Win Type - Total 0 Types 0/0/0/0/0/0/0/0/0 Lore% 27 Gallery% 19 Achievement% 20 Wizard Run 0 Options --------- Layout 2 ASCII 0 Keyboard 0 Movement Mouse Keybinds 0 Fullscreen 2 Font 32/Smallcaps Map View 50x44 Zoom Use 0% Tactical HUD 1 Map Filters NONE Filters NONE Steam 1 RUN: 00d17a07-3246-4663-b68c-519105180f09